fUSD/lending_fUSD_20260614
["ID","MTS","AMOUNT","RATE_DAILY","PERIOD"]
[425046648,1781446076000,-150.0,0.00016298,2]
[425046653,1781446081000,206.02,0.0002551,120]
[425046655,1781446101000,-4429.60000649,0.00016295,2]
[425046654,1781446101000,-825.00061453,0.00016191,2]
[425046656,1781446101000,-13.57778841,0.00016298,2]
[425046659,1781446101000,-151.0,0.00016299,2]
[425046658,1781446101000,-151.0,0.00016299,2]
[425046657,1781446101000,-153.0,0.00016298,2]
[425046660,1781446101000,-151.0,0.00016299,2]
[425046662,1781446101000,-6194.29,0.00016319,2]
[425046664,1781446101000,-933.73,0.00016438,2]
[425046663,1781446101000,-166.66,0.00016379,2]
[425046665,1781446101000,-166.66,0.00016716,2]
[425046661,1781446101000,-150.0,0.00016299,2]
[425046666,1781446101000,36514.48159057,0.00016292,2]
[425046667,1781446125000,-802.75694017,0.00016292,2]
[425046668,1781446127000,-10055.0,0.00016292,2]
[425046677,1781446128000,-177.05,0.00017714,2]
[425046675,1781446128000,-166.66,0.00017392,2]
[425046676,1781446128000,-165.78,0.0001753,2]
[425046674,1781446128000,-250.0,0.00017188,2]
[425046670,1781446128000,-206.02,0.00017006,2]
[425046672,1781446128000,-206.95587285,0.00017188,2]
[425046671,1781446128000,-166.66,0.00017054,2]
[425046669,1781446128000,-67.64650516,0.00016292,2]
[425046678,1781446128000,-166.66,0.00017729,2]
[425046673,1781446128000,-250.0,0.00017188,2]
[425046679,1781446128000,-300.0,0.00017775,2]
[425046688,1781446128000,-5733.4,0.00018122,2]
[425046681,1781446128000,-499.99,0.00017927,2]
[425046682,1781446128000,-350.0,0.00018,2]
[425046684,1781446128000,-151.0,0.00018106,2]
[425046683,1781446128000,-233.1294,0.00018023,2]
[425046685,1781446128000,-500.0,0.00018122,2]
[425046686,1781446128000,-500.0,0.00018122,2]
[425046687,1781446128000,-5733.4,0.00018122,2]
[425046689,1781446128000,-4325.19439919,0.00018123,2]
[425046690,1781446128000,-610650.7343,0.00018123,2]
[425046680,1781446128000,-9999.99,0.00017925,2]
[425046691,1781446128000,-177.05,0.00018157,2]
[425046692,1781446144000,-802.75694017,0.00018223,2]
[425046693,1781446161000,-217.04695444,0.00016291,2]
[425046694,1781446212000,-151.0,0.00016291,2]
[425046724,1781446215000,-13925.91605687,0.00037992,30]
[425046695,1781446215000,-11663659.17146712,0.00037992,30]
[425046696,1781446215000,-5934.23421914,0.00037992,30]
[425046697,1781446215000,-107065.45971567,0.00037992,30]
[425046698,1781446215000,-52161.19,0.00037992,30]
[425046699,1781446215000,-6837.29771964,0.00037992,30]
[425046701,1781446215000,-546.06119508,0.00037992,60]
[425046726,1781446215000,-15200.89207219,0.00037992,30]
[425046702,1781446215000,-546.06119508,0.00037992,60]
[425046703,1781446215000,-546.06119508,0.00037992,60]
[425046704,1781446215000,-546.06119508,0.00037992,60]
[425046705,1781446215000,-546.06119508,0.00037992,60]
[425046707,1781446215000,-546.06119508,0.00037992,60]
[425046706,1781446215000,-546.06119508,0.00037992,60]
[425046709,1781446215000,-546.06119508,0.00037992,60]
[425046708,1781446215000,-546.06119508,0.00037992,60]
[425046700,1781446215000,-546.06119508,0.00037992,60]
[425046710,1781446215000,-546.06119508,0.00037992,60]
[425046711,1781446215000,-546.061195,0.00037992,60]
[425046725,1781446215000,-111127.75325016,0.00037992,30]
[425046723,1781446215000,-153567.1382262,0.00037992,60]
[425046722,1781446215000,-27368.45066613,0.00037992,30]
[425046720,1781446215000,-105650.9533261,0.00037992,30]
[425046718,1781446215000,-16906.54071346,0.00037992,30]
[425046721,1781446215000,-705031.31019159,0.00037992,30]
[425046717,1781446215000,-66303.88078347,0.00037992,61]
[425046716,1781446215000,-19003.39421401,0.00037992,30]
[425046714,1781446215000,-252.31,0.00037992,120]
[425046715,1781446215000,-219286.52804717,0.00037992,30]
[425046712,1781446215000,-2111.33375873,0.00037992,120]
[425046713,1781446215000,-244.97,0.00037992,120]
[425046719,1781446215000,-54771.39545087,0.00037992,30]
[425046737,1781446216000,-529.0,0.00037992,60]
[425046741,1781446216000,-181.4048515,0.00037992,120]
[425046740,1781446216000,-1387.807,0.00037992,120]
[425046739,1781446216000,-1401.46743863,0.00037992,120]
[425046738,1781446216000,-381.611,0.00037992,120]
[425046736,1781446216000,-1000.0,0.00037992,120]
[425046735,1781446216000,-729.86,0.00037992,120]
[425046742,1781446216000,-26789.0684338,0.00037992,90]
[425046732,1781446216000,-212.38990866,0.00037992,120]
[425046733,1781446216000,-5856.32539926,0.00037992,90]
[425046730,1781446216000,-5000.0,0.00037992,39]
[425046731,1781446216000,-5100.0,0.00037992,43]
[425046728,1781446216000,-607.82,0.00037992,120]
[425046729,1781446216000,-417.13,0.00037992,120]
[425046727,1781446216000,-1431.5,0.00037992,120]
[425046734,1781446216000,-1621.9,0.00037992,120]
[425046743,1781446216000,-200.34810223,0.00037992,120]
[425046760,1781446216000,-474.39365931,0.00037992,120]
[425046744,1781446216000,-1810.0,0.00037992,120]
[425046745,1781446216000,-219.37395407,0.00037992,120]
[425046759,1781446216000,-1251978.0,0.00037992,90]
[425046758,1781446216000,-246.451562,0.00037992,120]
[425046757,1781446216000,-296.90168373,0.00037992,120]
[425046756,1781446216000,-153.98160956,0.00037992,60]
[425046755,1781446216000,-294.22235275,0.00037992,120]
[425046753,1781446216000,-153.6070949,0.00037992,30]
[425046761,1781446216000,-1212.13358453,0.00037992,120]
[425046752,1781446216000,-192.11287846,0.00037992,90]
[425046751,1781446216000,-236.79484995,0.00037992,120]
[425046750,1781446216000,-173.0,0.00037992,120]
[425046749,1781446216000,-177.2036326,0.00037992,30]
[425046747,1781446216000,-202.0,0.00037992,120]
[425046748,1781446216000,-1084.37847366,0.00037992,120]
[425046746,1781446216000,-170.15,0.00037992,120]
[425046754,1781446216000,-155.32974901,0.00037992,120]
[425046775,1781446217000,-2398.35357503,0.00037992,120]
[425046772,1781446217000,-1102.51560907,0.00037992,120]
[425046773,1781446217000,-1293.09209784,0.00037992,30]
[425046771,1781446217000,-506.93872883,0.00037992,120]
[425046770,1781446217000,-580.68025417,0.00037992,120]
[425046769,1781446217000,-1824.62751508,0.00037992,120]
[425046765,1781446217000,-1302.40628496,0.00037992,30]
[425046767,1781446217000,-399.24246338,0.00037992,120]
[425046766,1781446217000,-659.51438989,0.00037992,120]
[425046764,1781446217000,-720.51802767,0.00037992,120]
[425046763,1781446217000,-615.12203828,0.00037992,120]
[425046762,1781446217000,-65496.23697554,0.00037992,120]
[425046768,1781446217000,-3805.65494714,0.00037992,120]
[425046777,1781446217000,-5821.649,0.00037992,30]
[425046774,1781446217000,-958.38911804,0.00037992,120]
[425046778,1781446217000,-578149.09089481,0.00037992,120]
[425046776,1781446217000,-12497.24720414,0.00037992,120]
[425046791,1781446217000,-158.67086738,0.00037992,60]
[425046792,1781446217000,-361.93,0.00037992,120]
[425046790,1781446217000,-3000.0,0.00037992,120]
[425046789,1781446217000,-158.67086739,0.00037992,60]
[425046787,1781446217000,-183.0,0.00037992,120]
[425046786,1781446217000,-4832.0,0.00037992,120]
[425046788,1781446217000,-791.31580588,0.00037992,120]
[425046784,1781446217000,-181.36,0.00037992,120]
[425046783,1781446217000,-157.0495517,0.00037992,120]
[425046781,1781446217000,-2697.11308433,0.00037992,120]
[425046782,1781446217000,-11944.01502071,0.00037992,60]
[425046780,1781446217000,-719.0,0.00037992,120]
[425046779,1781446217000,-303.07,0.00037992,120]
[425046785,1781446217000,-299.27541579,0.00037992,120]
[425046803,1781446218000,-1265.33679315,0.00037992,60]
[425046809,1781446218000,-1265.33679315,0.00037992,60]
[425046807,1781446218000,-1265.33679315,0.00037992,60]
[425046808,1781446218000,-1265.33679315,0.00037992,60]
[425046806,1781446218000,-1265.33679315,0.00037992,60]
[425046805,1781446218000,-1265.33679315,0.00037992,60]
[425046804,1781446218000,-1265.33679315,0.00037992,60]
[425046802,1781446218000,-1265.33679315,0.00037992,60]
[425046794,1781446218000,-1265.33679315,0.00037992,60]
[425046801,1781446218000,-1265.33679315,0.00037992,60]
[425046799,1781446218000,-1265.33679315,0.00037992,60]
[425046798,1781446218000,-1265.33679315,0.00037992,60]
[425046796,1781446218000,-1265.33679315,0.00037992,60]
[425046797,1781446218000,-1265.33679315,0.00037992,60]
[425046795,1781446218000,-1265.33679315,0.00037992,60]
[425046793,1781446218000,-1265.33679315,0.00037992,60]
[425046810,1781446218000,-1265.33679315,0.00037992,60]
[425046800,1781446218000,-1265.33679315,0.00037992,60]
[425046812,1781446218000,-1265.33679315,0.00037992,60]
[425046825,1781446218000,-1265.33679315,0.00037992,60]
[425046813,1781446218000,-1265.33679315,0.00037992,60]
[425046829,1781446218000,-1265.33679315,0.00037992,60]
[425046830,1781446218000,-1265.33679315,0.00037992,60]
[425046828,1781446218000,-1265.33679315,0.00037992,60]
[425046827,1781446218000,-1265.33679315,0.00037992,60]
[425046831,1781446218000,-1265.33679315,0.00037992,60]
[425046826,1781446218000,-1265.33679315,0.00037992,60]
[425046823,1781446218000,-1265.33679315,0.00037992,60]
[425046824,1781446218000,-1265.33679315,0.00037992,60]
[425046811,1781446218000,-1265.33679315,0.00037992,60]
[425046821,1781446218000,-1265.33679315,0.00037992,60]
[425046820,1781446218000,-1265.33679315,0.00037992,60]
[425046819,1781446218000,-1265.33679315,0.00037992,60]
[425046817,1781446218000,-1265.33679315,0.00037992,60]
[425046818,1781446218000,-1265.33679315,0.00037992,60]
[425046815,1781446218000,-1265.33679315,0.00037992,60]
[425046816,1781446218000,-1265.33679315,0.00037992,60]
[425046814,1781446218000,-1265.33679315,0.00037992,60]
[425046822,1781446218000,-1265.33679315,0.00037992,60]
[425046842,1781446219000,-1265.33679315,0.00037992,60]
[425046843,1781446219000,-475.0,0.00037992,60]
[425046847,1781446219000,-10000.0,0.00037992,45]
[425046845,1781446219000,-4123.3531813,0.00037992,31]
[425046846,1781446219000,-10000.0,0.00037992,60]
[425046841,1781446219000,-1265.33679315,0.00037992,60]
[425046844,1781446219000,-1224.96091714,0.00037992,30]
[425046840,1781446219000,-1265.33679315,0.00037992,60]
[425046836,1781446219000,-1265.33679315,0.00037992,60]
[425046838,1781446219000,-1265.33679315,0.00037992,60]
[425046837,1781446219000,-1265.33679315,0.00037992,60]
[425046835,1781446219000,-1265.33679315,0.00037992,60]
[425046834,1781446219000,-1265.33679315,0.00037992,60]
[425046833,1781446219000,-1265.33679315,0.00037992,60]
[425046832,1781446219000,-1265.33679315,0.00037992,60]
[425046848,1781446219000,-15506.0,0.00037992,120]
[425046839,1781446219000,-1265.33679315,0.00037992,60]
[425046850,1781446219000,-317.34173481,0.00037992,60]
[425046849,1781446219000,-317.34173481,0.00037992,60]
[425046852,1781446219000,-304623.6,0.00037992,120]
[425046867,1781446219000,-205.56384965,0.00037992,60]
[425046868,1781446219000,-240.45282158,0.00037992,120]
[425046865,1781446219000,-240.45282158,0.00037992,120]
[425046866,1781446219000,-302.45938978,0.00037992,120]
[425046864,1781446219000,-302.45938978,0.00037992,120]
[425046863,1781446219000,-400.0,0.00037992,60]
[425046861,1781446219000,-1517.11292876,0.00037992,120]
[425046862,1781446219000,-10000.0,0.00037992,90]
[425046869,1781446219000,-302.45938978,0.00037992,120]
[425046859,1781446219000,-237923.5990313,0.00037992,120]
[425046857,1781446219000,-164.41009385,0.00037992,120]
[425046858,1781446219000,-208.29667605,0.00037992,120]
[425046856,1781446219000,-394.40770208,0.00037992,120]
[425046855,1781446219000,-107108.42507088,0.00037992,31]
[425046853,1781446219000,-2029.34668182,0.00037992,120]
[425046854,1781446219000,-343.44647302,0.00037992,120]
[425046851,1781446219000,-317.34173481,0.00037992,60]
[425046860,1781446219000,-12026.49323631,0.00037992,120]
[425046880,1781446220000,-302.45938978,0.00037992,120]
[425046881,1781446220000,-302.45938978,0.00037992,120]
[425046884,1781446220000,-302.45938978,0.00037992,120]
[425046882,1781446220000,-302.45938978,0.00037992,120]
[425046885,1781446220000,-302.45938978,0.00037992,120]
[425046879,1781446220000,-240.45282158,0.00037992,120]
[425046883,1781446220000,-302.45938978,0.00037992,120]
[425046878,1781446220000,-302.45938978,0.00037992,120]
[425046873,1781446220000,-302.45938978,0.00037992,120]
[425046876,1781446220000,-302.45938978,0.00037992,120]
[425046875,1781446220000,-302.45938978,0.00037992,120]
[425046874,1781446220000,-240.45282158,0.00037992,120]
[425046871,1781446220000,-302.45938978,0.00037992,120]
[425046872,1781446220000,-240.45282158,0.00037992,120]
[425046870,1781446220000,-240.45282158,0.00037992,120]
[425046887,1781446220000,-309.26,0.00037992,120]
[425046877,1781446220000,-240.45282158,0.00037992,120]
[425046886,1781446220000,-302.45938978,0.00037992,120]
[425046888,1781446220000,-205.56384964,0.00037992,60]
[425046907,1781446220000,-452.36447093,0.00037992,120]
[425046908,1781446220000,-452.36447093,0.00037992,120]
[425046906,1781446220000,-452.36447093,0.00037992,120]
[425046905,1781446220000,-452.36447093,0.00037992,120]
[425046904,1781446220000,-452.36447093,0.00037992,120]
[425046903,1781446220000,-452.36447093,0.00037992,120]
[425046902,1781446220000,-452.36447093,0.00037992,120]
[425046901,1781446220000,-452.36447093,0.00037992,120]
[425046899,1781446220000,-452.36447093,0.00037992,120]
[425046900,1781446220000,-274.6068833,0.00037992,120]
[425046889,1781446220000,-240.45282157,0.00037992,120]
[425046897,1781446220000,-2570.95572146,0.00037992,30]
[425046896,1781446220000,-2098.73936446,0.00037992,120]
[425046895,1781446220000,-1764.20743265,0.00037992,120]
[425046894,1781446220000,-214.28,0.00037992,120]
[425046893,1781446220000,-199.86948897,0.00037992,120]
[425046891,1781446220000,-199.86948897,0.00037992,120]
[425046892,1781446220000,-199.86948897,0.00037992,120]
[425046890,1781446220000,-12459.0244229,0.00037992,120]
[425046898,1781446220000,-4407.35266536,0.00037992,120]
[425046919,1781446221000,-306.53745227,0.00037992,105]
[425046921,1781446221000,-30220.32158683,0.00037992,120]
[425046925,1781446221000,-276.48774399,0.00037992,40]
[425046923,1781446221000,-161.28451733,0.00037992,30]
[425046924,1781446221000,-161.28451733,0.00037992,40]
[425046920,1781446221000,-1433.011883,0.00037992,120]
[425046922,1781446221000,-403.83,0.00037992,120]
[425046918,1781446221000,-37603.1766735,0.00037992,105]
[425046912,1781446221000,-452.36447093,0.00037992,120]
[425046916,1781446221000,-700.0,0.00037992,30]
[425046914,1781446221000,-452.36447093,0.00037992,120]
[425046915,1781446221000,-175.31,0.00037992,120]
[425046913,1781446221000,-452.36447093,0.00037992,120]
[425046910,1781446221000,-452.36447093,0.00037992,120]
[425046911,1781446221000,-452.36447093,0.00037992,120]
[425046909,1781446221000,-452.36447093,0.00037992,120]
[425046926,1781446221000,-253.44709866,0.00037992,40]
[425046917,1781446221000,-326.8323,0.00037992,120]
[425046927,1781446221000,-247.1632863,0.00037992,40]
[425046933,1781446221000,-1180.02841939,0.00037992,120]
[425046929,1781446221000,-6735.4402,0.00037992,120]
[425046946,1781446221000,-152.94885553,0.00037992,120]
[425046944,1781446221000,-154.94482123,0.00037992,120]
[425046945,1781446221000,-151.0,0.00037992,120]
[425046943,1781446221000,-154.94482123,0.00037992,120]
[425046942,1781446221000,-474.9,0.00037992,120]
[425046928,1781446221000,-600120.00582217,0.00037992,60]
[425046941,1781446221000,-5000.0,0.00037992,120]
[425046939,1781446221000,-146594.35861223,0.00037992,30]
[425046940,1781446221000,-100000.0,0.00037992,30]
[425046937,1781446221000,-236.00568389,0.00037992,120]
[425046935,1781446221000,-200.65631359,0.00037992,30]
[425046936,1781446221000,-4000.0,0.00037992,30]
[425046934,1781446221000,-400.0,0.00037992,30]
[425046932,1781446221000,-1180.02841939,0.00037992,120]
[425046930,1781446221000,-1180.02841939,0.00037992,120]
[425046931,1781446221000,-1180.02841939,0.00037992,120]
[425046938,1781446221000,-157.66607492,0.00037992,120]
[425046956,1781446222000,-152.94885553,0.00037992,120]
[425046962,1781446222000,-249.30381975,0.00037992,120]
[425046963,1781446222000,-152.94885553,0.00037992,120]
[425046960,1781446222000,-154.94482123,0.00037992,120]
[425046961,1781446222000,-349.98121204,0.00037992,120]
[425046958,1781446222000,-156.587,0.00037992,120]
[425046959,1781446222000,-151.0,0.00037992,120]
[425046957,1781446222000,-162.380719,0.00037992,120]
[425046965,1781446222000,-151.0,0.00037992,120]
[425046955,1781446222000,-249.30381975,0.00037992,120]
[425046952,1781446222000,-349.98121204,0.00037992,120]
[425046953,1781446222000,-151.0,0.00037992,120]
[425046950,1781446222000,-152.94885553,0.00037992,120]
[425046951,1781446222000,-156.587,0.00037992,120]
[425046949,1781446222000,-151.0,0.00037992,120]
[425046948,1781446222000,-154.94482123,0.00037992,120]
[425046947,1781446222000,-249.30381975,0.00037992,120]
[425046954,1781446222000,-154.94482123,0.00037992,120]
[425046966,1781446222000,-349.98121204,0.00037992,120]
[425046964,1781446222000,-168.3888056,0.00037992,120]
[425046984,1781446222000,-152.94885553,0.00037992,120]
[425046986,1781446222000,-151.0,0.00037992,120]
[425046985,1781446222000,-249.30381975,0.00037992,120]
[425046982,1781446222000,-181.08010149,0.00037992,120]
[425046983,1781446222000,-174.61919141,0.00037992,120]
[425046980,1781446222000,-151.0,0.00037992,120]
[425046981,1781446222000,-154.94482123,0.00037992,120]
[425046978,1781446222000,-249.30381975,0.00037992,120]
[425046979,1781446222000,-349.98121204,0.00037992,120]
[425046976,1781446222000,-168.3888056,0.00037992,120]
[425046967,1781446222000,-154.94482123,0.00037992,120]
[425046974,1781446222000,-154.94482123,0.00037992,120]
[425046977,1781446222000,-152.94885553,0.00037992,120]
[425046968,1781446222000,-249.30381975,0.00037992,120]
[425046970,1781446222000,-162.380719,0.00037992,120]
[425046969,1781446222000,-152.94885553,0.00037992,120]
[425046973,1781446222000,-174.61919141,0.00037992,120]
[425046972,1781446222000,-349.98121204,0.00037992,120]
[425046975,1781446222000,-151.0,0.00037992,120]
[425046971,1781446222000,-249.30381975,0.00037992,120]
[425047002,1781446223000,-151.0,0.00037992,120]
[425046996,1781446223000,-181.08010149,0.00037992,120]
[425047000,1781446223000,-151.0,0.00037992,120]
[425047001,1781446223000,-151.0,0.00037992,120]
[425046998,1781446223000,-151.0,0.00037992,120]
[425046999,1781446223000,-152.94885553,0.00037992,120]
[425046997,1781446223000,-249.30381975,0.00037992,120]
[425046995,1781446223000,-187.78006524,0.00037992,120]
[425046991,1781446223000,-349.98121204,0.00037992,120]
[425046993,1781446223000,-154.94482128,0.00037992,120]
[425046992,1781446223000,-4000.0,0.00037992,30]
[425046990,1781446223000,-6888.0,0.00037992,120]
[425046989,1781446223000,-151.0,0.00037992,120]
[425046988,1781446223000,-1000.0,0.00037992,120]
[425046987,1781446223000,-500.0,0.00037992,120]
[425047003,1781446223000,-518.5,0.00037992,120]
[425046994,1781446223000,-3500.0,0.00037992,120]
[425047004,1781446223000,-151.0,0.00037992,120]
[425047009,1781446223000,-4000.0,0.00037992,30]
[425047006,1781446223000,-500.0,0.00037992,120]
[425047022,1781446223000,-151.0,0.00037992,120]
[425047021,1781446223000,-152.94885553,0.00037992,120]
[425047020,1781446223000,-151.0,0.00037992,120]
[425047019,1781446223000,-151.0,0.00037992,120]
[425047005,1781446223000,-1000.0,0.00037992,120]
[425047017,1781446223000,-520.0,0.00037992,120]
[425047016,1781446223000,-500.0,0.00037992,120]
[425047015,1781446223000,-194.72792766,0.00037992,120]
[425047018,1781446223000,-152.0,0.00037992,120]
[425047013,1781446223000,-200.0,0.00037992,120]
[425047012,1781446223000,-160.0,0.00037992,120]
[425047011,1781446223000,-3629.5,0.00037992,120]
[425047010,1781446223000,-187.78006524,0.00037992,120]
[425047008,1781446223000,-349.98121204,0.00037992,120]
[425047007,1781446223000,-7142.856,0.00037992,120]
[425047014,1781446223000,-249.30381975,0.00037992,120]
[425047033,1781446224000,-203.63399089,0.00037992,120]
[425047040,1781446224000,-152.94885553,0.00037992,120]
[425047038,1781446224000,-190.54857827,0.00037992,120]
[425047037,1781446224000,-200.0,0.00037992,120]
[425047035,1781446224000,-194.72792766,0.00037992,120]
[425047036,1781446224000,-3763.7915,0.00037992,120]
[425047034,1781446224000,-249.30381975,0.00037992,120]
[425047032,1781446224000,-4000.0,0.00037992,30]
[425047039,1781446224000,-539.24,0.00037992,120]
[425047030,1781446224000,-349.98121204,0.00037992,120]
[425047029,1781446224000,-7407.141672,0.00037992,120]
[425047028,1781446224000,-518.5,0.00037992,120]
[425047027,1781446224000,-500.0,0.00037992,120]
[425047026,1781446224000,-151.0,0.00037992,120]
[425047025,1781446224000,-537.6845,0.00037992,120]
[425047024,1781446224000,-151.0,0.00037992,120]
[425047023,1781446224000,-151.0,0.00037992,120]
[425047031,1781446224000,-1000.0,0.00037992,120]
[425047041,1781446224000,-500.0,0.00037992,120]
[425047046,1781446224000,-151.0,0.00037992,120]
[425047044,1781446224000,-151.0,0.00037992,120]
[425047043,1781446224000,-156.587,0.00037992,120]
[425047061,1781446224000,-500.0,0.00037992,120]
[425047059,1781446224000,-559.19188,0.00037992,120]
[425047058,1781446224000,-200.0,0.00037992,120]
[425047060,1781446224000,-152.94885553,0.00037992,120]
[425047057,1781446224000,-3903.0517855,0.00037992,120]
[425047056,1781446224000,-1000.0,0.00037992,120]
[425047055,1781446224000,-4000.0,0.00037992,30]
[425047053,1781446224000,-151.0,0.00037992,120]
[425047054,1781446224000,-7681.20591386,0.00037992,120]
[425047051,1781446224000,-537.6845,0.00037992,120]
[425047050,1781446224000,-500.0,0.00037992,120]
[425047049,1781446224000,-249.30381975,0.00037992,120]
[425047047,1781446224000,-615.95576126,0.00037992,120]
[425047048,1781446224000,-156.587,0.00037992,120]
[425047062,1781446224000,-151.0,0.00037992,120]
[425047045,1781446224000,-156.587,0.00037992,120]
[425047052,1781446224000,-349.98121204,0.00037992,120]
[425047042,1781446224000,-152.0,0.00037992,120]
[425047076,1781446225000,-4047.46470156,0.00037992,120]
[425047074,1781446225000,-151.0,0.00037992,120]
[425047075,1781446225000,-1000.0,0.00037992,120]
[425047079,1781446225000,-500.0,0.00037992,120]
[425047078,1781446225000,-151.0,0.00037992,120]
[425047073,1781446225000,-7965.41053267,0.00037992,120]
[425047077,1781446225000,-200.0,0.00037992,120]
[425047070,1781446225000,-557.5788265,0.00037992,120]
[425047063,1781446225000,-152.0,0.00037992,120]
[425047071,1781446225000,-500.0,0.00037992,120]
[425047069,1781446225000,-162.380719,0.00037992,120]
[425047068,1781446225000,-162.380719,0.00037992,120]
[425047066,1781446225000,-151.0,0.00037992,120]
[425047067,1781446225000,-349.98121204,0.00037992,120]
[425047065,1781446225000,-249.30381975,0.00037992,120]
[425047064,1781446225000,-162.380719,0.00037992,120]
[425047080,1781446225000,-249.30381975,0.00037992,120]
[425047072,1781446225000,-4000.0,0.00037992,30]
[425047081,1781446225000,-152.94885553,0.00037992,120]
[425047086,1781446225000,-349.98121204,0.00037992,120]
[425047084,1781446225000,-151.0,0.00037992,120]
[425047102,1781446225000,-4000.0,0.00037992,30]
[425047101,1781446225000,-174.61919141,0.00037992,120]
[425047099,1781446225000,-151.0,0.00037992,120]
[425047100,1781446225000,-152.0,0.00037992,120]
[425047098,1781446225000,-152.94885553,0.00037992,120]
[425047083,1781446225000,-168.3888056,0.00037992,120]
[425047094,1781446225000,-8260.13072238,0.00037992,120]
[425047096,1781446225000,-200.0,0.00037992,120]
[425047095,1781446225000,-249.30381975,0.00037992,120]
[425047097,1781446225000,-4197.22089552,0.00037992,120]
[425047092,1781446225000,-151.0,0.00037992,120]
[425047091,1781446225000,-500.0,0.00037992,120]
[425047090,1781446225000,-4000.0,0.00037992,30]
[425047089,1781446225000,-168.3888056,0.00037992,120]
[425047088,1781446225000,-578.20924308,0.00037992,120]
[425047087,1781446225000,-579.88197956,0.00037992,120]
[425047085,1781446225000,-168.3888056,0.00037992,120]
[425047082,1781446225000,-152.0,0.00037992,120]
[425047093,1781446225000,-1000.0,0.00037992,120]
[425047114,1781446226000,-349.98121204,0.00037992,120]
[425047115,1781446226000,-200.0,0.00037992,120]
[425047116,1781446226000,-500.0,0.00037992,120]
[425047121,1781446226000,-151.0,0.00037992,120]
[425047118,1781446226000,-4000.0,0.00037992,30]
[425047120,1781446226000,-181.08010149,0.00037992,120]
[425047113,1781446226000,-151.0,0.00037992,120]
[425047111,1781446226000,-1000.0,0.00037992,120]
[425047119,1781446226000,-152.0,0.00037992,120]
[425047110,1781446226000,-4071.04319327,0.00037992,120]
[425047109,1781446226000,-151.0,0.00037992,120]
[425047107,1781446226000,-174.61919141,0.00037992,120]
[425047108,1781446226000,-249.30381975,0.00037992,120]
[425047106,1781446226000,-174.61919141,0.00037992,120]
[425047104,1781446226000,-151.0,0.00037992,120]
[425047105,1781446226000,-599.60298507,0.00037992,120]
[425047103,1781446226000,-500.0,0.00037992,120]
[425047112,1781446226000,-601.3376128,0.00037992,120]
[425047122,1781446226000,-4352.51806865,0.00037992,120]
[425047117,1781446226000,-152.94885553,0.00037992,120]
[425047124,1781446226000,-249.30381975,0.00037992,120]
[425047142,1781446226000,-187.78006524,0.00037992,120]
[425047140,1781446226000,-151.0,0.00037992,120]
[425047141,1781446226000,-741.27629019,0.00037992,120]
[425047138,1781446226000,-187.78006524,0.00037992,120]
[425047139,1781446226000,-4513.56123719,0.00037992,120]
[425047137,1781446226000,-152.94885553,0.00037992,120]
[425047135,1781446226000,-500.0,0.00037992,120]
[425047136,1781446226000,-152.0,0.00037992,120]
[425047134,1781446226000,-4000.0,0.00037992,30]
[425047123,1781446226000,-500.0,0.00037992,120]
[425047133,1781446226000,-184.82918417,0.00037992,120]
[425047131,1781446226000,-349.98121204,0.00037992,120]
[425047130,1781446226000,-151.0,0.00037992,120]
[425047128,1781446226000,-151.0,0.00037992,120]
[425047129,1781446226000,-623.58710447,0.00037992,120]
[425047127,1781446226000,-1000.0,0.00037992,120]
[425047126,1781446226000,-621.78829552,0.00037992,120]
[425047125,1781446226000,-181.08010149,0.00037992,120]
[425047132,1781446226000,-181.08010149,0.00037992,120]
[425047152,1781446227000,-500.0,0.00037992,120]
[425047155,1781446227000,-151.0,0.00037992,120]
[425047159,1781446227000,-349.98121204,0.00037992,120]
[425047158,1781446227000,-194.72792766,0.00037992,120]
[425047156,1781446227000,-249.30381975,0.00037992,120]
[425047153,1781446227000,-267.77298159,0.00037992,120]
[425047157,1781446227000,-151.0,0.00037992,120]
[425047154,1781446227000,-152.0,0.00037992,120]
[425047148,1781446227000,-187.78006524,0.00037992,120]